Cogmind - Beta 13 @@@ ROGUE MODE // 2024.04.02 @ 23:01:10 Player: lazy_engineer Result: Destroyed by S-10 Pest with Light Assault Rifle Performance ------------- Evolutions (1) 500 Regions Visited (5) 1000 Robots Destroyed (64) 320 Value Destroyed (1645) 1645 Prototype IDs (23) 460 Alien Tech Used (0) 0 Bonus (105) 105 TOTAL SCORE: 4030 Bonus ------- High Alert Combat Kills 105 Cogmind --------- Core Integrity 0/400 Matter 272/300 Energy 268/275 System Corruption 0% Temperature Cool (0) Movement Hovering (176) Ox2 Location -8/Mines Parts ------- > --- POWER (1) -------- Deuterium Engine > --- PROPULSION (2) --- Airjet Airjet > --- UTILITY (4) ------ High-capacity Storage Unit Weight Redist. System Signal Interpreter Makeshift Cloaking Device > --- WEAPON (2) ------- Makeshift Axe > --- INVENTORY (20) --- Light Nuclear Core Aluminum Leg Airjet Airjet Flying Fortress v7 Improved Heat Sink Large Storage Unit Visual Processing Unit Transport Network Coupler ECM Suite Light Assault Rifle Mini Grenade Launcher Mining Laser Mining Laser Welding Torch Hammer Peak State ------------ > --- POWER ------------ Deuterium Engine > --- PROPULSION ------- Airjet Airjet > --- UTILITY ---------- High-capacity Storage Unit Weight Redist. System Signal Interpreter Makeshift Cloaking Device > --- WEAPON ----------- Makeshift Axe > --- INVENTORY -------- Light Nuclear Core Aluminum Leg Airjet Airjet Flying Fortress v7 Improved Heat Sink Large Storage Unit Visual Processing Unit Transport Network Coupler ECM Suite Light Assault Rifle Mini Grenade Launcher Mining Laser Mining Laser Welding Torch Hammer [Rating: 27] Favorites ----------- Power Ion Engine Engine Ion Engine Power Core Light Nuclear Core Propulsion Aluminum Leg Treads Light Treads Leg Aluminum Leg Wheel Wheel Hover Unit Airjet Utility High-capacity Storage Unit Device Improved Terrain Scanner Storage High-capacity Storage Unit Processor Signal Interpreter Protection Backup Plating I Weapon Light Cannon Energy Gun Backup Laser I Ballistic Gun Light Assault Rifle Ballistic Cannon Light Cannon Launcher Grenade Launcher Special Weapon Mining Laser Impact Weapon Flail Slashing Weapon Makeshift Axe Build | -11 -10 -9 -9 -9 -8 ------- Run | Yrd Mat Mat Min Exi Min Slots Evolved 2 | . . 2 . . . Power . | . . . . . . Propulsion . | . . . . . . Utility 2 | . . 2 . . . Weapon . | . . . . . . Parts Attached 50 | 6 12 19 9 4 . Power 6 | 1 . 1 3 1 . Engine 4 | 1 . 1 1 1 . Core 2 | . . . 2 . . Reactor . | . . . . . . Propulsion 14 | 2 2 6 4 . . Treads 1 | 1 . . . . . Leg 8 | . 2 4 2 . . Wheel 1 | 1 . . . . . Hover 4 | . . 2 2 . . Flight . | . . . . . . Utility 17 | 1 5 7 2 2 . Device 13 | . 2 7 2 2 . Storage 3 | 1 2 . . . . Processor 1 | . 1 . . . . Hackware . | . . . . . . Protection . | . . . . . . Artifact . | . . . . . . Weapon 13 | 2 5 5 . 1 . Energy Gun 1 | . . 1 . . . Energy Cannon . | . . . . . . Ballistic Gun 5 | 2 1 2 . . . Ballistic Cannon 2 | . 2 . . . . Launcher 1 | . 1 . . . . Special Weapon 1 | . 1 . . . . Impact Weapon 2 | . . 2 . . . Slashing Weapon 1 | . . . . 1 . Piercing Weapon . | . . . . . . Special Melee Weapon . | . . . . . . Unidentified Prototypes . | . . . . . . Parts Lost 21 | . 5 11 5 . . Power 1 | . . 1 . . . Propulsion 7 | . 2 4 1 . . Utility 8 | . 1 4 3 . . Weapon 5 | . 2 2 1 . . Highest Loss Streak 6 | . 2 6 2 . . To Critical Strikes 1 | . . 1 . . . Average Slot Usage (%) 85 | . 98 93 77 65 88 Engine 8 | . 14 8 . 3 11 Treads 1 | . 6 . . . . Leg 9 | . 7 19 12 . . Wheel 4 | . 13 . . . . Hover 7 | . . 2 9 22 22 Device 10 | . 4 19 12 7 22 Storage 11 | . 14 11 11 11 11 Processor 8 | . 2 11 11 11 11 Protection 1 | . 6 . . . . Ballistic Gun 6 | . 15 3 3 . . Ballistic Cannon 6 | . 11 9 . . . Impact Weapon 5 | . . 8 11 6 . Slashing Weapon 1 | . . . . 4 11 Naked Turns . | . . . . . . Heaviest Build 53 | 13 51 51 48 53 53 Greatest Support 22 | 10 20 20 20 22 22 Greatest Overweight (x) 5 | 1 5 4 2 2 2 Average Overweight (x) 2 | . 3 2 2 1 2 Largest Inventory Capacity 20 | 8 20 20 20 20 20 Average Capacity 18 | 7 16 20 20 20 20 Most Carried 20 | 6 18 20 16 20 19 Average Carried 15 | 2 11 18 14 18 19 Final Capacity 20 | 8 20 20 20 20 20 Final Carried 19 | 5 17 15 15 19 19 Class Distribution -------------------- 66% | Mutant 31% | Scavenger-Mutant Dominant Class ---------------- Mutant | -10/Materials Scavenger-Mutant | -9/Materials Scavenger-Mutant | -9/Mines Mutant | -9/Exiles Mutant | -8/Mines Resources | -11 -10 -9 -9 -9 -8 ----------- Run | Yrd Mat Mat Min Exi Min Matter Collected 1226 | 292 546 274 102 . 12 Remotely . | . . . . . . Salvage Created 2049 | 129 1025 501 167 215 12 Parts 111 | 16 59 28 4 3 1 Haulers Intercepted . | . . . . . . Recyclers Shooed 1 | . 1 . . . . Parts Field Recycled . | . . . . . . Retrieved Matter . | . . . . . . Parts Self-Destructed . | . . . . . . Prevented . | . . . . . . Kills | -11 -10 -9 -9 -9 -8 ------- Run | Yrd Mat Mat Min Exi Min Combat Hostiles Destroyed 46 | . 26 13 6 . 1 Melee 5 | . . . 4 . 1 Guns 16 | . 14 2 . . . Cannons 18 | . 12 6 . . . Classes Destroyed 11 | 2 6 2 1 . . Worker 2 | . 1 1 . . . Builder 3 | . 1 1 1 . . Tunneler 4 | 4 . . . . . Recycler 2 | 1 1 . . . . Operator 3 | . 2 1 . . . Watcher 5 | . 3 2 . . . Swarmer 10 | . 3 3 3 . 1 Grunt 31 | . 23 6 2 . . Brawler 1 | . . 1 . . . Duelist 1 | . . . 1 . . Sentry 3 | . . 3 . . . Best Kill Streak 5 | 5 5 5 2 . 1 Combat Bots Only 5 | . 3 5 2 . 1 Max Kills in Single Turn 3 | 1 3 1 1 . 1 Gunslinging . | . . . . . . Exploded . | . . . . . . Melee 1 | . . . 1 . 1 Uniques/NPCs Destroyed . | . . . . . . Combat | -11 -10 -9 -9 -9 -8 -------- Run | Yrd Mat Mat Min Exi Min Hostile Shots Fired 282 | . 113 111 49 . 9 Missed 68 | . 27 26 13 . 2 Damage Taken 2448 | . 952 951 488 . 57 Core 566 | . 163 219 166 . 18 Absorbed by Shields 141 | . 22 106 13 . . Regen/Repaired (Parts) 113 | . 113 . . . . Core Remaining (%) 67 | 100 34 . . . . Volleys Fired 138 | 8 96 34 . . . Largest 2 | 2 2 2 . . . Hottest 135 | 40 135 65 . . . Shots Fired 248 | 16 175 57 . . . Gun 144 | 16 105 23 . . . Cannon 102 | . 68 34 . . . Launcher . | . . . . . . Special 2 | . 2 . . . . Kinetic 234 | 16 173 45 . . . Thermal 14 | . 2 12 . . . Explosive . | . . . . . . Electromagnetic . | . . . . . . Robot Hit Streak 13 | 5 13 7 . . . Robot Miss Streak 6 | 3 3 6 . . . Penetration Max . | . . . . . . Secondary Targets . | . . . . . . Shots Hit Robots 214 | 7 118 61 15 12 1 Core Hits 79 | 5 51 15 2 5 1 Critical Kills 1 | . . . 1 . . Critical Parts Destroyed 14 | . . 7 6 1 . Critical Strikes 17 | . 1 7 8 1 . Blast 1 | . 1 . . . . Smash 16 | . . 7 8 1 . Melee Attacks 78 | . . 35 28 14 1 Impact 70 | . . 35 28 7 . Slashing 8 | . . . . 7 1 Piercing . | . . . . . . Sneak Attacks 3 | . . 2 1 . . Combat Hostiles . | . . . . . . Follow-up Attacks . | . . . . . . Damage Inflicted 4540 | 78 1739 1162 558 968 35 Guns 1021 | 78 806 137 . . . Cannons 1092 | . 684 408 . . . Explosions 249 | . 249 . . . . Melee 2178 | . . 617 558 968 35 Ramming . | . . . . . . Kinetic 2032 | 78 1490 464 . . . Thermal 330 | . 249 81 . . . Explosive . | . . . . . . Electromagnetic . | . . . . . . Impact 1757 | . . 617 558 582 . Slashing 421 | . . . . 386 35 Piercing . | . . . . . . Highest Corruption . | . . . . . . Average Corruption . | . . . . . . Corruption Purged . | . . . . . . Corruption Blocked . | . . . . . . Overload Shots . | . . . . . . Overflow Damage 734 | . 74 234 225 201 . Projectiles 12 | . 12 . . . . Explosions 62 | . 62 . . . . Melee 660 | . . 234 225 201 . Knockbacks 14 | . 8 5 1 . . Impact 1 | . . . 1 . . Kinetic 12 | . 8 4 . . . Secondary 1 | . . 1 . . . Self-Inflicted Damage . | . . . . . . Shots . | . . . . . . Rammed . | . . . . . . Targets Rammed . | . . . . . . Kicked . | . . . . . . Crushed . | . . . . . . Highest Temperature 86 | . 86 16 . . . Average Temperature 22 | . 23 6 . . . Received Heat Transfer 975 | . 529 367 79 . . Siege Activations . | . . . . . . Robots Corrupted . | . . . . . . Combat Hostiles . | . . . . . . Parts Fried 15 | . . 5 9 1 . Impact Corruptions 29 | . . 11 13 5 . Robots Melted . | . . . . . . Combat Hostiles . | . . . . . . Parts Melted . | . . . . . . Heat Transferred 533 | . 200 333 . . . Parts Sabotaged . | . . . . . . Parts Stolen . | . . . . . . Parts Stripped . | . . . . . . Power Chain Reactions . | . . . . . . Alert | -11 -10 -9 -9 -9 -8 ------- Run | Yrd Mat Mat Min Exi Min Peak Influence 626 | 25 626 456 223 . 20 Initial 243 | . 16 243 88 . . Average 308 | 12 392 294 162 . 10 Maximum Alert Level 2 | . 2 2 1 . . Low Security (%) 27 | 100 25 16 48 . 100 Level 1 41 | . 11 69 51 . . Level 2 31 | . 62 13 . . . Level 3 . | . . . . . . Level 4 . | . . . . . . Level 5 . | . . . . . . High Security . | . . . . . . Max Security . | . . . . . . Squads Dispatched 14 | . 10 4 . . . Investigation 12 | . 8 4 . . . Extermination . | . . . . . . Reinforcement 2 | . 2 . . . . Assault . | . . . . . . Garrison . | . . . . . . Intercept . | . . . . . . Searches Triggered . | . . . . . . Construction Impeded . | . . . . . . Haulers Reinforced . | . . . . . . Active Scanning Responses . | . . . . . . Cargo Convoy Interrupts . | . . . . . . Stealth | -11 -10 -9 -9 -9 -8 --------- Run | Yrd Mat Mat Min Exi Min Distress Signals 1 | . 1 . . . . Communications Jammed . | . . . . . . Distress Signals . | . . . . . . Times Spotted 72 | . 36 21 12 . 3 Peak Tracking Total 4 | . 4 4 4 . 3 Tactical Retreats 4 | . 1 . 3 . . Traps | -11 -10 -9 -9 -9 -8 ------- Run | Yrd Mat Mat Min Exi Min Traps Triggered 5 | . 4 1 . . . Indirectly . | . . . . . . Trap Hack Attempts . | . . . . . . Triggered . | . . . . . . Disarmed . | . . . . . . Reprogrammed . | . . . . . . Reused . | . . . . . . Traps Extracted . | . . . . . . Installed . | . . . . . . Triggered . | . . . . . . Machines | -11 -10 -9 -9 -9 -8 ---------- Run | Yrd Mat Mat Min Exi Min Machines Disabled 9 | . 7 1 . 1 . Max in Single Turn 6 | . 6 1 . 1 . Machines Repaired . | . . . . . . Machines Dismantled . | . . . . . . Machines Sabotaged . | . . . . . . Overloaded Fab Kills . | . . . . . . Hacking | -11 -10 -9 -9 -9 -8 --------- Run | Yrd Mat Mat Min Exi Min Machines Accessed 15 | . 9 5 . 1 . Terminals 9 | . 6 3 . . . Fabricators . | . . . . . . Repair Stations 1 | . 1 . . . . Recycling Units 3 | . 2 1 . . . Scanalyzers 1 | . . 1 . . . Garrison Access . | . . . . . . Total Hacks 63 | . 39 23 . 1 . Successful 36 | . 22 13 . 1 . Failed 27 | . 17 10 . . . Catastrophic . | . . . . . . Database Lockouts . | . . . . . . Manual 41 | . 25 14 . 2 . Terminals 42 | . 30 12 . . . Fabricators . | . . . . . . Repair Stations 6 | . 6 . . . . Recycling Units 8 | . 3 5 . . . Scanalyzers 6 | . . 6 . . . Garrison Access . | . . . . . . Terminal Hacks 8 | . 5 2 . 1 . Robot Analysis 1 | . 1 . . . . Locate Traps 1 | . 1 . . . . Surveillance Status 1 | . 1 . . . . Hauler Manifests 2 | . 2 . . . . Zone Layout 2 | . . 2 . . . Derelict Proto ID Bank 1 | . . . . 1 . Fabricator Hacks . | . . . . . . Repair Station Hacks 5 | . 5 . . . . Scan Component 2 | . 2 . . . . Repair 1 | . 1 . . . . Refit 2 | . 2 . . . . Recycling Unit Hacks 1 | . 1 . . . . Report Inventory 1 | . 1 . . . . Scanalyzer 5 | . . 5 . . . Insert Component 2 | . . 2 . . . Analyze 3 | . . 3 . . . Garrison Access Hacks . | . . . . . . Unauthorized Hacks 17 | . 11 6 . . . Terminals 13 | . 9 4 . . . Track 4 | . 3 1 . . . Botnet 8 | . 5 3 . . . Operators 1 | . 1 . . . . Fabricators . | . . . . . . Repair Stations . | . . . . . . Recycling Units 4 | . 2 2 . . . Mask 1 | . . 1 . . . Tunnel 3 | . 2 1 . . . Scanalyzers . | . . . . . . Garrison Access . | . . . . . . Data Cores Recovered . | . . . . . . Used . | . . . . . . Hacking Detections 11 | . 7 4 . . . Full Trace Events 10 | . 7 3 . . . Feedback Events . | . . . . . . Feedback Blocked . | . . . . . . Robot Schematics Acquired . | . . . . . . Robots Built . | . . . . . . Authchips . | . . . . . . Time . | . . . . . . Total Robot Build Rating . | . . . . . . Part Schematics Acquired 2 | . . 2 . . . Parts Built . | . . . . . . Authchips . | . . . . . . Time . | . . . . . . Total Part Build Rating . | . . . . . . Parts Repaired 1 | . 1 . . . . Time 26 | . 26 . . . . Parts Recycled . | . . . . . . Recycled Matter . | . . . . . . Retrieved Matter . | . . . . . . Retrieved Components . | . . . . . . Parts Scanalyzed 2 | . . 2 . . . Part Schematics Acquired 2 | . . 2 . . . Parts Damaged . | . . . . . . Bothacking | -11 -10 -9 -9 -9 -8 ------------ Run | Yrd Mat Mat Min Exi Min Used RIF Installer . | . . . . . . Robots Hacked . | . . . . . . Non-combat . | . . . . . . Combat . | . . . . . . Robot Hacks Applied . | . . . . . . Relay Couplers Released . | . . . . . . Fabnet Peak Effective % . | . . . . . . Robots Rewired . | . . . . . . Allies Hacked . | . . . . . . Hacks Repelled . | . . . . . . Allies | -11 -10 -9 -9 -9 -8 -------- Run | Yrd Mat Mat Min Exi Min Total Allies . | . . . . . . Largest Group . | . . . . . . Highest-Rated Group . | . . . . . . Highest-Rated Ally . | . . . . . . Total Orders . | . . . . . . Ally Attacks . | . . . . . . Total Damage . | . . . . . . Kills . | . . . . . . Allies Corrupted . | . . . . . . Allies Melted . | . . . . . . Intel | -11 -10 -9 -9 -9 -8 ------- Run | Yrd Mat Mat Min Exi Min Robot Analysis Total 1 | . 1 . . . . Derelict Logs Recovered 1 | . . . 1 . . Drone Launches . | . . . . . . Drone Recoveries . | . . . . . . Exploration | -11 -10 -9 -9 -9 -8 ------------- Run | Yrd Mat Mat Min Exi Min Turns Passed 4782 | 96 1464 1488 485 1241 8 Spaces Moved 2202 | 60 819 469 161 690 3 Core 6 | 6 . . . . . Treads . | . . . . . . Legs 485 | . 11 388 86 . . Wheels 862 | 54 808 . . . . Hover 849 | . . 81 75 690 3 Flight . | . . . . . . Fastest Speed 50 | 50 95 176 176 116 176 Average Speed 173 | 87 129 246 220 173 176 Slowest Speed 400 | 95 400 400 260 176 176 Overloaded Moves . | . . . . . . Propulsion Burnouts . | . . . . . . Robots Hopped . | . . . . . . Cave-ins Triggered . | . . . . . . Exploration Rate (%) 45 | 3 100 47 24 93 4 Regions Visited 5 Branch Regions 3 Pre-discovered Areas 4 | . 2 1 1 . . Known Exits Taken 4 | . 1 1 1 1 . Unknown Exits Taken 1 | 1 . . . . . Scrap Searched . | . . . . . . Spaces Dug 3 | . . 3 . . . Terrain Destroyed 27 | . 24 3 . . . Melee 3 | . . 3 . . . Projectile 1 | . 1 . . . . AOE 23 | . 23 . . . . Terrain Rammed . | . . . . . . Walls Destroyed . | . . . . . . Machines Disabled . | . . . . . . Actions | -11 -10 -9 -9 -9 -8 --------- Run | Yrd Mat Mat Min Exi Min Total 2799 | 89 1053 689 248 716 4 Wait 272 | 3 107 112 46 4 . Move 2197 | 59 818 468 160 689 3 Hop . | . . . . . . Pick Up 52 | 12 18 15 3 4 . Fast Attach 2 | . . 1 . 1 . Attach 34 | 6 6 14 5 3 . Detach 2 | . . . 2 . . Swap 14 | . 6 4 4 . . Drop 10 | 1 2 6 . 1 . Fire 138 | 8 96 34 . . . Melee 78 | . . 35 28 14 1 Ram . | . . . . . . Kick . | . . . . . . Crush . | . . . . . . Escape Stasis . | . . . . . . Rewire . | . . . . . . Trap . | . . . . . . Miscellaneous . | . . . . . . Route ------- -11/Scrapyard -10/Materials (discovered 4 exits: *Mat x3 / [*Min]) -9/Materials (discovered 3 exits: [*Mat x2] / *Min) -9/Mines -9/Exiles (discovered 2 exits: *Min x2) -8/Mines History --------- Turn | Location | Event 13 | -11/Scrapyard | Discovered new exit (range 15) 97 | -11/Scrapyard | Entered Materials 303 | -10/Materials | Build established: Mutant 316 | -10/Materials | Discovered new exit (range 14) 662 | -10/Materials | Discovered new exit (range 16) 743 | -10/Materials | Core integrity fell below 50% 802 | -10/Materials | Discovered new exit (range 10) 910 | -10/Materials | Discovered new exit (range 16) 1267 | -10/Materials | Identified exit to Materials 1413 | -10/Materials | Repaired Lgt. Cannon 1561 | -10/Materials | Entered another Materials area 1561 | -9/Materials | Evolved 2 slots: Utility x2 1690 | -9/Materials | Lost 3 parts (2u1w) 1991 | -9/Materials | Build established: Scavenger-Mutant 2160 | -9/Materials | Discovered new exit (range 9) 2851 | -9/Materials | Discovered new exit (range 11) 2877 | -9/Materials | Core integrity fell below 50% 2913 | -9/Materials | Lost 6 parts (1p3n1u1w) 3018 | -9/Materials | Discovered new exit (range 7) 3030 | -9/Materials | Identified exit to Mines 3049 | -9/Materials | Entered Mines 3060 | -9/Mines | Learned location of Zion (-7) 3216 | -9/Mines | Build established: Mutant 3420 | -9/Mines | Core integrity fell below 20% 3526 | -9/Mines | Deemed a non-threat by the Exiles lab entrance 3527 | -9/Mines | Discovered new exit (range 5) 3533 | -9/Mines | Identified exit to Exiles 3534 | -9/Mines | Entered Exiles 3534 | -9/Exiles | Found Exiles lab destroyed 3756 | -9/Exiles | Opened EX-Vault 3763 | -9/Exiles | Found Prototype Flight Unit 3768 | -9/Exiles | Identified Flying Fortress v7 3931 | -9/Exiles | Discovered new exit (range 14) 3949 | -9/Exiles | Identified exit to Mines 4755 | -9/Exiles | Discovered exit to Mines (range 14) 4775 | -9/Exiles | Entered Mines 4783 | -8/Mines | Destroyed by S-10 Pest with Light Assault Rifle Last Messages --------------- 04198_ H-55 Commando system corrupted by crushing effect. 04199_ H-55 Commando system terminally corrupted. 04199_ Carbon-fiber Leg fried. 04294_ Dropped Flail. 04298_ Acquired Mak. Axe. 04319_ Acquired Transport Network Coupler. 04322_ Sneak attack on A-02 Transporter. 04326_ Destroyed Lgt. Treads. 04328_ Sneak attack on A-02 Transporter. 04328_ A-02 Transporter destroyed. 04330_ Sneak attack on A-02 Transporter. 04330_ A-02 Transporter destroyed. 04334_ Acquired Weight Redist. System. 04396_ Acquired Mak. Cloaking Device. 04593_ Components damaged. 04755_ EXIT=FOUND: MINES LOCATION=MINES GOAL=ESCAPE 04779_ S-10 Pest destroyed. 04781_ Acquired 12 matter. Map ----- +----------------------------------------------------+ | ?????????????????????????????? | | ?????????????????????????????? | | ?????????????????????????????? | | ?????????????????????????????? | | ?????????????????????????????? | | ?????????????????????????????? | | ?????????????????????????????? | | ?????????????????????????????? | | ?????????????????????????????? | | ?????????????????????????????? | | ?????????????????????????????? | | ?????????????????????????????? | | ?????????????????????????????? | | ?????????????????????????????? | | ?????????????????????????????? | | ?????????????????????????????? | | ?????????????????????????????? | | ?????????????????????????????? | | ?????????????????????????????? | | ?????????????????????????????? | | ?????????????????????########? | | ?????????????????????# #? | | ?????????????????????# """ #? | | ??????????????????# ## """ #? | | ??????????????????# """ #? | | ??????????????????#### @ #? | | ?????????????????????# s #? | | ?????????????????????# s #? | | ?????????????????????# #? | | ?????????????????????# #? | | ?????????????????????########? | | ?????????????????????????????? | | ?????????????????????????????? | | ?????????????????????????????? | | ?????????????????????????????? | | ?????????????????????????????? | | ?????????????????????????????? | | ?????????????????????????????? | | | | | | | | | | | | | | | | | | | | | | | | | +----------------------------------------------------+ Best States ------------- Heat Dissipation 39 Energy Generation 14 Energy Capacity 275 Matter Stores 300 Matter Capacity 300 Sight Range 16 Robot Scan Range 14 Terrain Scan Range 16 Terrain Scan Density 10 Cloak Strength 3 Additional Mass Support 6 Armor Coverage 80 Evasion (%) 44 Item Schematics ----------------- Airjet | -9/Materials | Scanalyzed Imp. Terrain Scanner | -9/Materials | Scanalyzed Robot Schematics ------------------ None Fabricated ------------ Nothing Alien Tech Used ----------------- None Achievements -------------- None Challenges ------------ None Game ------ Seed DynamicGreatCanceller Manual? 0 Play Time 00:46:03 Cumulative 17.2 hours Start 2024.04.02 @ 21:33:00 End 2024.04.02 @ 23:01:10 Sessions 1 Manual Loads 0 Difficulty Rogue Special Mode None Game No. 33 Rogue 33 Adventurer 0 Explorer 0 Win Type - Total 0 Types 0/0/0/0/0/0/0/0/0 Lore% 16 Gallery% 19 Achievement% 18 Wizard Run 0 Options --------- Layout 0 ASCII 0 Keyboard 0 Movement Mouse Keybinds 0 Fullscreen 1 Font 24/Smallcaps Map View 76x50 Zoom Use 0% Tactical HUD 1 Map Filters NONE Filters NONE Steam 1 RUN: f5219fc3-2b22-4ac7-a52a-b73944d902bf